bitfinex-derivatives/quotes_ETHF0:USTF0_20250403
["timestamp","ask_amount","ask_price","bid_price","bid_amount"]
[1743717093687,2.50104,1804.1,1804.0,41.0277515]
[1743717093983,3.19474,1804.1,1804.0,41.0277515]
[1743717118205,2.50104,1804.1,1804.0,41.0277515]
[1743717118400,2.50104,1804.1,1804.0,43.2111515]
[1743717126113,6.12504,1804.1,1804.0,41.0277515]
[1743717127721,6.12504,1804.1,1804.0,42.5198515]
[1743717140230,6.12504,1804.1,1804.0,41.0277515]
[1743717157548,1.10904,1804.1,1804.0,42.4622515]
[1743717160049,1.10904,1804.1,1804.0,43.5713115]
[1743717161846,0.00831278,1804.2,1804.1,1.109]
[1743717162050,0.00831278,1804.2,1804.1,3.4356515]
[1743717162251,0.00831278,1804.2,1804.1,5.9356515]
[1743717162453,0.00831278,1804.2,1804.1,46.7356515]
[1743717165454,1.11725278,1804.2,1804.1,46.7356515]
[1743717168157,1.11725278,1804.2,1804.1,44.2356515]
[1743717169962,0.00831278,1804.2,1804.1,44.2356515]
[1743717170261,1.11725278,1804.2,1804.1,44.2356515]
[1743717173362,0.00831278,1804.2,1804.1,44.2356515]
[1743717176268,0.00831278,1804.2,1804.1,46.7356515]
[1743717180363,1.1088,1804.5,1804.4,1.10882]
[1743717180665,1.1088,1804.5,1804.4,4.31662]
[1743717181066,1.1088,1804.5,1804.4,5.03652]
[1743717181267,1.1088,1804.5,1804.4,5.2642715]
[1743717182672,1.1088,1804.5,1804.4,2.0564715]
[1743717183174,2.60983,1804.6,1804.5,1.10876]
[1743717183474,2.60983,1804.6,1804.5,2.57636]
[1743717184260,2.60983,1804.6,1804.5,2.8041115]
[1743717186075,2.60983,1804.6,1804.5,3.5027115]
[1743717187173,1.5011,1804.6,1804.5,3.5027115]
[1743717189372,2.6098,1804.6,1804.5,3.5027115]
[1743717190372,1.5011,1804.6,1804.5,3.5027115]
[1743717193380,0.7111,1804.7,1804.6,1.1087]
[1743717193574,0.7111,1804.7,1804.6,2.5132]
[1743717193778,2.2056,1804.7,1804.6,2.5132]
[1743717194376,3.31423,1804.7,1804.6,2.7409515]
[1743717194977,2.2056,1804.7,1804.6,2.7409515]
[1743717195778,3.31423,1804.7,1804.6,2.7409515]
[1743717196079,3.31423,1804.7,1804.6,5.9487515]
[1743717196080,1.4945,1804.7,1804.6,5.9487515]
[1743717196276,2.60313,1804.7,1804.6,5.9487515]
[1743717196575,1.4945,1804.7,1804.6,5.9487515]
[1743717197679,1.4945,1804.7,1804.6,2.7409515]
[1743717198176,1.4945,1804.7,1804.6,5.9487515]
[1743717198879,0.7145,1804.8,1804.7,1.10863]
[1743717199080,1.82307,1804.8,1804.7,3.26283]
[1743717199275,1.82307,1804.8,1804.7,3.4905815]
[1743717200180,1.82307,1804.8,1804.7,2.7388815]
[1743717203778,1.10851,1805.0,1804.9,1.10844]
[1743717203986,1.10843,1805.1,1805.0,1.10839]
[1743717204181,2.62293,1805.1,1805.0,2.54319]
[1743717204483,2.62293,1805.1,1805.0,43.5709415]
[1743717205577,2.62293,1805.1,1805.0,42.1361415]
[1743717206282,1.5145,1805.1,1805.0,42.1361415]
[1743717207181,1.5145,1805.1,1805.0,43.5321415]
[1743717210382,0.6905,1805.2,1805.1,1.10839]
[1743717210582,2.128,1805.2,1805.1,1.10839]
[1743717210986,2.128,1805.2,1805.1,41.90839]
[1743717211192,4.31604,1805.4,1805.1,42.93]
[1743717211483,4.31604,1805.4,1805.3,1.10827]
[1743717211878,4.31604,1805.4,1805.3,2.53857]
[1743717212081,3.2078,1805.4,1805.3,43.33857]
[1743717212281,1.4375,1805.5,1805.4,1.1082]
[1743717212480,1.4375,1805.5,1805.4,3.2496]
[1743717212893,1.4375,1805.5,1805.4,44.0496]
[1743717213383,1.4375,1805.5,1805.4,44.2773515]
[1743717222694,1.4375,1805.5,1805.4,47.4851515]
[1743717223596,1.10808,1805.6,1805.5,1.10814]
[1743717223893,2.55247,1805.7,1805.6,1.10808]
[1743717224484,3.24267,1805.7,1805.6,1.3358315]
[1743717226289,3.24267,1805.7,1805.6,0.2277515]
[1743717227093,5.83726285,1805.7,1805.6,0.2277515]
[1743717227490,5.83726285,1805.7,1805.6,0.21943872]
[1743717227899,11.80526285,1805.7,1805.6,0.21943872]
[1743717228187,1.10808,1805.6,1805.5,0.00831278]
[1743717228398,9.53267462,1805.6,1805.5,0.00831278]
[1743717228699,12.03267462,1805.6,1805.5,0.00831278]
[1743717229498,1.10814,1805.5,1805.4,40.8]
[1743717229700,2.70992894,1805.5,1805.4,40.8]
[1743717230000,5.20992894,1805.5,1805.4,40.8]
[1743717230698,1.1082,1805.4,1805.3,0.00831278]
[1743717230893,5.91468894,1805.4,1805.3,0.00831278]
[1743717231096,1.10851,1804.9,1804.8,4.31633]
[1743717231707,1.10851,1804.9,1804.8,45.11633]
[1743717232394,1.83431,1804.9,1804.8,45.11633]
[1743717232595,1.83431,1804.9,1804.8,41.90853]
[1743717232900,0.7258,1804.9,1804.8,41.90857]
[1743717233590,3.28891,1804.9,1804.8,41.90857]
[1743717234503,3.28891,1804.9,1804.8,40.8]
[1743717253624,1.10857,1804.8,1804.7,1.48621278]
[1743717254025,4.72357,1804.8,1804.7,42.28621278]
[1743717261731,6.12527,1804.8,1804.7,42.28621278]
[1743717274646,6.12527,1804.8,1804.7,40.80831278]
[1743717275149,6.12527,1804.8,1804.7,41.91694278]
[1743717275337,6.12527,1804.8,1804.7,43.38024278]
[1743717280950,5.0167,1804.8,1804.7,43.38024278]
[1743717282652,6.12527,1804.8,1804.7,43.38024278]
[1743717290957,6.12527,1804.8,1804.7,42.27161278]
[1743717291161,6.12527,1804.8,1804.7,43.38024278]
[1743717291760,6.12527,1804.8,1804.7,42.27161278]
[1743717294856,6.12527,1804.8,1804.7,43.03111278]
[1743717295056,6.12527,1804.8,1804.7,44.13974278]
[1743717295556,6.12527,1804.8,1804.7,43.03111278]
[1743717296262,6.85467,1804.8,1804.7,43.03111278]
[1743717296663,6.12527,1804.8,1804.7,44.13974278]
[1743717298258,6.12527,1804.8,1804.7,44.19681364]
[1743717300665,4.72357,1804.8,1804.7,44.19681364]
[1743717301065,4.72056,1804.9,1804.8,1.10856]
[1743717301261,4.72056,1804.9,1804.8,2.62706]
[1743717301466,4.72056,1804.9,1804.8,2.68413086]
[1743717301668,4.72056,1804.9,1804.8,43.48413086]
[1743717302265,7.38903,1805.1,1805.0,1.10845]
[1743717302266,3.2078,1805.1,1805.0,1.10845]
[1743717302460,1.5153,1805.1,1805.0,1.10845]
[1743717302661,1.10834,1805.2,1805.1,1.10839]
[1743717302861,10.16452,1805.3,1805.1,1.10834]
[1743717303061,10.16452,1805.3,1805.2,2.9154]
[1743717303563,10.16452,1805.3,1805.2,2.97247086]
[1743717304368,6.95672,1805.3,1805.2,2.97247086]
[1743717305868,3.34472,1805.3,1805.2,2.97247086]
[1743717306064,6.23562,1805.3,1805.2,2.97247086]
[1743717306370,6.23562,1805.3,1805.2,4.08080086]
[1743717306677,6.23562,1805.3,1805.2,2.97247086]
[1743717307671,6.23562,1805.3,1805.2,4.08080086]
[1743717307872,6.23562,1805.3,1805.2,2.97247086]
[1743717308079,6.23562,1805.3,1805.2,4.08080086]
[1743717308265,6.23562,1805.3,1805.2,2.97247086]
[1743717308972,2.62362,1805.3,1805.2,2.97247086]
[1743717309277,6.23462,1805.3,1805.2,4.08080086]
[1743717309673,5.1263,1805.3,1805.2,4.08080086]
[1743717309875,6.23457,1805.3,1805.2,4.08080086]
[1743717311472,1.10822,1805.4,1805.3,1.10823]
[1743717311776,3.9217,1805.5,1805.4,1.1082]
[1743717311777,6.52359,1805.5,1805.4,1.1082]
[1743717312170,7.23669,1805.5,1805.4,41.9082]
[1743717312368,7.23669,1805.5,1805.4,41.96527086]
[1743717313274,10.84769,1805.5,1805.4,41.96527086]
[1743717314276,10.84769,1805.5,1805.4,1.16527086]
[1743717314876,2.60189,1805.5,1805.4,1.16527086]
[1743717315079,2.60189,1805.5,1805.4,1.86927086]
[1743717315270,1.4937,1805.5,1805.4,3.30657086]
[1743717315777,1.80473278,1805.6,1805.5,1.10814]
[1743717316276,3.31153278,1805.6,1805.5,3.32784]
[1743717316480,3.31153278,1805.6,1805.5,3.38491086]
[1743717317177,1.11643278,1805.6,1805.5,3.38491086]
[1743717317377,0.00831278,1805.6,1805.5,3.38491086]
[1743717319480,1.11639278,1805.6,1805.5,3.38491086]
[1743717321978,0.00831278,1805.6,1805.5,3.38491086]
[1743717322980,0.00831278,1805.6,1805.5,44.18491086]
[1743717325787,0.00831278,1805.6,1805.5,47.39271086]
[1743717328986,0.09641452,1807.1,1805.9,5.552]
[1743717329285,1.4716,1807.0,1806.9,1.10728]
[1743717329480,2.57882,1807.0,1806.9,1.16435086]
[1743717329880,1.4716,1807.0,1806.9,41.96435086]
[1743717330087,2.57882,1807.0,1806.9,41.96435086]
[1743717330385,1.4716,1807.0,1806.9,41.96435086]
[1743717330582,5.03242278,1807.1,1806.9,41.96435086]
[1743717330786,4.32332278,1807.1,1807.0,2.48542]
[1743717330986,3.21611278,1807.1,1807.0,2.48542]
[1743717331187,0.00831278,1807.1,1807.0,2.48542]
[1743717331589,0.00831278,1807.1,1807.0,2.54249086]
[1743717332786,0.00831278,1807.1,1807.0,43.34249086]
[1743717332988,1.10706,1807.3,1807.0,42.23527086]
[1743717333191,1.4505,1807.2,1807.1,1.1071]
[1743717333789,1.4505,1807.2,1807.1,1.16417086]
[1743717335790,1.81982,1807.4,1807.1,3.26487086]
[1743717335986,0.7128,1807.4,1807.3,1.10704]
[1743717336186,1.81979,1807.4,1807.3,1.10704]
[1743717336393,1.81979,1807.4,1807.2,2.52216]
[1743717336588,1.81979,1807.4,1807.3,0.05707086]
[1743717336794,3.24739,1807.4,1807.3,0.05707086]
[1743717336990,3.24739,1807.4,1807.3,1.16411086]
[1743717337193,1.4276,1807.4,1807.3,1.16411086]
[1743717337689,3.2078,1807.6,1807.3,0.05707086]
[1743717337897,3.2078,1807.6,1807.5,1.10692]
[1743717337898,1.10687,1807.6,1807.5,1.10692]
[1743717338290,1.10684,1807.7,1807.5,1.10692]
[1743717338485,1.10684,1807.7,1807.6,1.10685]
[1743717338697,1.10684,1807.7,1807.6,0.05707086]
[1743717338997,1.10684,1807.7,1807.6,1.16392086]
[1743717339496,1.10679,1807.7,1807.6,1.16392086]
[1743717340196,3.9122,1807.9,1807.6,0.05707086]
[1743717340392,1.10679,1807.7,1807.6,1.16390086]
[1743717340597,1.10679,1807.7,1807.6,0.05707086]
[1743717340798,3.9122,1807.9,1807.6,1.16392086]
[1743717340998,1.10676,1807.8,1807.7,1.10678]
[1743717341198,2.7661,1808.3,1807.6,4.65217086]
[1743717341399,1.10661,1808.0,1807.9,1.10665]
[1743717341598,1.10661,1808.0,1807.9,0.05707086]
[1743717341796,1.10661,1808.0,1807.9,40.85707086]
[1743717341996,7.90109,1808.4,1808.0,1.10658]
[1743717342192,1.10647,1808.3,1808.2,1.10646]
[1743717342497,1.4701,1808.4,1808.2,1.10646]
[1743717342698,1.04935914,1808.3,1808.0,4.5951]
[1743717342898,1.4701,1808.4,1808.1,1.3873]
[1743717343093,1.10647,1808.3,1808.2,1.10648]
[1743717343290,1.10647,1808.3,1808.1,1.3873]
[1743717343488,5.97391,1808.3,1807.9,40.8]
[1743717343699,1.10661,1808.0,1807.9,40.8]
[1743717343901,1.10661,1808.0,1807.9,41.90667]
[1743717344203,1.10661,1808.0,1807.9,1.10667]
[1743717344411,1.10661,1808.0,1807.9,2.59387]
[1743717345109,1.10661,1808.0,1807.9,1.10667]
[1743717345510,1.10661,1808.0,1807.9,2.59387]
[1743717348808,4.23603,1808.4,1807.9,6.75387]
[1743717349009,1.10659,1808.1,1808.0,5.77676]
[1743717349406,1.10667,1807.9,1807.8,44.01611278]
[1743717350307,1.10667,1807.9,1807.8,40.80831278]
[1743717350804,2.61727,1807.9,1807.8,40.80831278]
[1743717359917,9.64602,1808.3,1808.0,1.10661]
[1743717360117,1.4795,1808.2,1807.9,2.58362]
[1743717360313,1.10655,1808.1,1808.0,1.477]
[1743717360516,1.10655,1808.1,1808.0,2.58361]
[1743717360716,2.58605,1808.1,1808.0,2.58361]
[1743717360919,2.58605,1808.1,1808.0,1.477]
[1743717362021,1.10638,1808.4,1808.3,1.10643]
[1743717362724,2.50155,1808.5,1808.4,1.10637]
[1743717365516,5.169,1808.7,1808.3,1.4435]
[1743717365716,5.97313,1808.8,1808.5,1.10625]
[1743717365717,1.10629,1808.6,1808.5,1.10625]
[1743717365911,0.45193152,1809.3,1808.5,3.2078]
[1743717365912,3.2078,1809.3,1808.5,3.2078]
[1743717366116,3.2078,1809.9,1809.2,3.2078]
[1743717366420,3.2078,1810.3,1809.7,3.2078]
[1743717366716,3.2078,1810.3,1809.9,3.2078]
[1743717366915,5.72632,1810.5,1810.1,1.10531]
[1743717367112,3.2078,1810.8,1810.2,1.44]
[1743717367310,0.09438293,1810.7,1810.6,1.10502]
[1743717367513,3.2078,1811.2,1810.7,3.2078]
[1743717367719,3.2078,1811.2,1810.5,0.00828775]
[1743717367720,3.2078,1810.8,1810.5,0.00828775]
[1743717367915,2.58101,1810.7,1810.6,40.8]
[1743717368111,6.49801,1810.7,1810.6,40.8]
[1743717368313,7.893,1810.7,1810.6,40.8]
[1743717368720,5.393,1810.7,1810.6,40.8]
[1743717368918,1.476,1810.7,1810.6,40.8]
[1743717369124,1.476,1810.7,1810.5,0.00828775]
[1743717369616,2.58096,1810.7,1810.5,40.80828775]
[1743717369921,3.914,1810.6,1810.5,40.80828775]
[1743717370121,5.39,1810.6,1810.5,40.80828775]
[1743717370419,1.476,1810.6,1810.5,1.11336775]
[1743717370621,1.476,1810.6,1810.5,4.32116775]
[1743717370823,3.909,1810.8,1810.7,1.10496]
[1743717371117,1.4544,1810.9,1810.8,1.1049]
[1743717371617,1.4544,1810.9,1810.8,2.5376]
[1743717372314,1.10462,1811.3,1810.8,5.0376]
[1743717372516,3.2078,1811.5,1811.1,3.2078]
[1743717372720,1.54874225,1811.4,1811.2,1.4327]
[1743717372914,1.4544,1811.4,1811.2,1.4327]
[1743717373117,1.4544,1811.4,1811.3,1.10459]
[1743717373421,1.4544,1811.4,1811.2,2.53731]
[1743717373719,3.2078,1811.7,1811.2,1.4327]
[1743717374120,1.43,1811.6,1811.2,1.4327]
[1743717374327,1.10449,1811.5,1811.3,1.10459]
[1743717374522,1.43,1811.4,1811.3,1.10459]
[1743717375117,1.43,1811.4,1811.1,3.2078]
[1743717375118,1.43,1811.4,1811.1,4.31248]
[1743717375321,1.10461,1811.3,1811.1,3.2078]
[1743717375529,5.389,1811.2,1810.9,3.2078]
[1743717375730,1.1049,1810.8,1810.7,3.2078]
[1743717375924,1.10502,1810.6,1810.5,0.00828775]
[1743717376324,3.60502,1810.6,1810.5,0.00828775]
[1743717376524,5.03502,1810.6,1810.5,0.00828775]
[1743717377130,1.10523,1810.3,1810.1,4.31308]
[1743717377335,1.4639,1810.2,1810.1,4.31308]
[1743717377628,2.56917,1810.2,1810.1,3.2078]
[1743717377825,1.10542,1810.0,1809.9,3.2078]
[1743717378026,1.10539,1810.0,1809.7,4.31333]
[1743717378229,1.4639,1809.9,1809.8,0.00828775]
[1743717378426,2.56935,1809.9,1809.8,0.00828775]
[1743717378627,1.4639,1809.9,1809.8,0.00828775]
[1743717378827,2.56935,1809.9,1809.8,0.00828775]
[1743717379331,5.06935,1809.9,1809.8,0.00828775]
[1743717379928,5.16378293,1809.9,1809.8,0.00828775]
[1743717380433,5.16378012,1809.9,1809.8,0.00828775]
[1743717382633,5.16378012,1809.9,1809.8,7.75e-06]
[1743717382823,5.16378819,1809.9,1809.8,7.75e-06]
[1743717383025,5.16378819,1809.9,1809.0,3.2078]
[1743717383026,1.10594,1809.1,1809.0,3.2078]
[1743717383225,1.106,1809.0,1808.9,40.8]
[1743717384226,2.50306775,1809.1,1808.9,40.8]
[1743717384432,0.00828775,1809.1,1809.0,4.3138]
[1743717384628,0.00828775,1809.1,1809.0,5.6883]
[1743717385531,5.07466,1809.6,1809.1,2.76482]
[1743717385732,3.969,1809.6,1809.5,1.10569]
[1743717386233,5.3578,1809.6,1809.2,7.34699]
[1743717386428,5.3578,1809.6,1809.5,1.10569]
[1743717386627,6.47165431,1809.6,1809.4,4.31352]
[1743717386934,5.36600431,1809.6,1809.5,1.10569]
[1743717387134,6.47168431,1809.6,1809.4,5.75594]
[1743717387333,6.47168431,1809.6,1809.5,1.10569]
[1743717387631,0.00820431,1809.6,1809.4,4.6502]
[1743717387830,0.00820431,1809.6,1809.5,1.10569]
[1743717388041,0.00820431,1809.6,1809.5,2.54809]
[1743717388331,0.00820431,1809.6,1809.5,43.34809]
[1743717388532,1.498,1810.0,1809.9,1.10545]
[1743717388830,1.10534,1810.1,1810.0,1.10538]
[1743717389035,5.07032,1810.2,1810.0,2.54777]
[1743717389226,3.965,1810.2,1810.1,4.31313]
[1743717389632,1.10511,1810.5,1810.3,1.10516]
[1743717389830,7.1798,1810.6,1810.2,1.5075]
[1743717390030,1.4375,1810.7,1810.5,4.31286]
[1743717390232,2.54247,1810.7,1810.6,40.8]
[1743717390635,7.1798,1811.2,1810.6,40.8]
[1743717390840,2.54232,1811.0,1810.8,1.10488]
[1743717391136,1.4375,1811.0,1810.9,1.10484]
[1743717391336,1.10468,1811.2,1810.9,3.2078]
[1743717391535,1.10468,1811.2,1811.0,1.10477]
[1743717391737,1.10468,1811.2,1811.0,1.5075]
[1743717392237,1.10472,1811.1,1811.0,1.5075]
[1743717392433,1.10478,1811.0,1810.9,3.21608775]
[1743717392733,5.80438,1811.0,1810.9,0.00828775]
[1743717393239,5.5208,1811.0,1810.9,0.00828775]
[1743717393737,5.5208,1811.0,1810.9,1.43368775]
[1743717394341,4.032,1811.3,1810.9,2.53851775]
[1743717394636,5.5238,1811.3,1810.9,1.43368775]
[1743717394840,1.10474,1811.1,1810.9,1.43368775]
[1743717395142,8.28534,1811.3,1810.9,1.43368775]
[1743717395444,1.10478,1811.0,1810.9,1.43368775]
[1743717397044,5.12478,1811.0,1810.9,0.00828775]
[1743717397440,7.62478,1811.0,1810.9,0.00828775]
[1743717397635,1.10496,1810.7,1810.6,3.2078]
[1743717397932,1.10496,1810.7,1810.3,0.7163]
[1743717397933,1.10514,1810.4,1810.3,3.2078]
[1743717398138,6.78141,1810.7,1810.1,5.71551]
[1743717398139,1.10522,1810.3,1810.1,5.71551]
[1743717398338,1.10522,1810.3,1810.1,46.51551]
[1743717398543,4.022,1810.4,1810.1,45.4102]
[1743717398737,1.10527,1810.2,1810.1,45.4102]
[1743717398946,1.10527,1810.2,1810.1,42.2024]
[1743717399242,1.10533,1810.1,1810.0,0.00828775]
[1743717399440,6.51653,1810.1,1810.0,0.00828775]
[1743717400238,9.11092844,1810.1,1810.0,0.00828775]
[1743717400452,12.31872844,1810.1,1810.0,0.00828775]
[1743717401444,12.31872844,1810.1,1810.0,5.841e-05]
[1743717402749,12.31875875,1810.1,1810.0,5.841e-05]
[1743717404639,8.30075875,1810.1,1810.0,5.841e-05]
[1743717404941,9.81575875,1810.1,1810.0,5.841e-05]
[1743717405746,9.72133,1810.1,1810.0,5.841e-05]
[1743717405943,9.81574841,1810.1,1810.0,5.841e-05]
[1743717406646,9.81574841,1810.1,1810.0,40.80005841]
[1743717409545,6.60794841,1810.1,1810.0,40.80005841]
[1743717409746,9.81574841,1810.1,1810.0,40.80005841]
[1743717410243,9.81574841,1810.1,1810.0,5.841e-05]
[1743717410643,6.60794841,1810.1,1810.0,40.80005841]
[1743717410851,9.81574841,1810.1,1810.0,40.80005841]
[1743717411050,9.81574841,1810.1,1810.0,5.841e-05]
[1743717411548,12.31574841,1810.1,1810.0,5.841e-05]
[1743717413553,12.31575718,1810.1,1810.0,5.841e-05]
[1743717416153,9.10795718,1810.1,1810.0,5.841e-05]
[1743717416457,12.31575718,1810.1,1810.0,5.841e-05]
[1743717416754,12.31575266,1810.1,1810.0,5.841e-05]
[1743717419552,12.22133,1810.1,1810.0,5.841e-05]
[1743717419759,12.31576305,1810.1,1810.0,5.841e-05]
[1743717420860,12.22133,1810.1,1810.0,5.841e-05]
[1743717421053,12.31576149,1810.1,1810.0,5.841e-05]
[1743717421253,8.30076149,1810.1,1810.0,5.841e-05]
[1743717421454,12.26276149,1810.1,1810.0,5.841e-05]
[1743717422263,12.26276317,1810.1,1810.0,5.841e-05]
[1743717423167,18.23076317,1810.1,1810.0,5.841e-05]
[1743717423665,18.13633,1810.1,1810.0,5.841e-05]
[1743717423867,18.23076303,1810.1,1810.0,5.841e-05]
[1743717424666,17.12543303,1810.1,1810.0,5.841e-05]
[1743717425359,17.12543071,1810.1,1810.0,5.841e-05]
[1743717426562,18.23076071,1810.1,1810.0,5.841e-05]
[1743717426864,1.10563,1809.6,1809.5,2.2306]
[1743717427063,5.13907319,1809.6,1809.5,2.2306]
[1743717427561,4.03344319,1809.6,1809.5,2.2306]
[1743717427868,3.939,1809.6,1809.5,2.2306]
[1743717428065,0.00828775,1809.7,1809.5,2.2306]
[1743717428365,3.94,1809.6,1809.5,2.2306]
[1743717428763,3.938,1809.6,1809.5,43.0306]
[1743717432171,3.938,1809.6,1809.5,2.2306]
[1743717432667,4.03243652,1809.6,1809.5,2.2306]
[1743717433164,4.03243859,1809.6,1809.5,2.2306]
[1743717434672,4.03244009,1809.6,1809.5,2.2306]
[1743717436272,4.03243698,1809.6,1809.5,2.2306]
[1743717437672,4.03243828,1809.6,1809.5,2.2306]
[1743717438763,3.938,1809.6,1809.5,2.2306]
[1743717438967,4.03243651,1809.6,1809.5,2.2306]
[1743717440068,3.938,1809.6,1809.5,2.2306]
[1743717440270,4.03243459,1809.6,1809.5,2.2306]
[1743717440664,4.03243762,1809.6,1809.5,2.2306]
[1743717440972,3.938,1809.6,1809.5,2.2306]
[1743717441173,3.98343694,1809.6,1809.5,2.2306]
[1743717441372,3.889,1809.6,1809.5,2.2306]
[1743717441774,3.889,1809.6,1809.5,43.0306]
[1743717448380,3.2078,1810.2,1809.5,49.3986]
[1743717448682,3.946,1811.2,1810.0,3.2078]
[1743717448868,3.946,1811.2,1809.6,6.54]
[1743717448869,0.09437039,1811.1,1810.8,3.2078]
[1743717449074,0.09437039,1811.1,1811.0,3.2078]
[1743717449274,0.09435154,1811.1,1811.0,3.2078]
[1743717449481,5.369,1811.2,1811.0,4.7145]
[1743717449677,5.37728775,1811.2,1811.0,4.7145]
[1743717450180,3.95528775,1811.2,1811.0,4.7145]
[1743717450477,3.95228775,1811.2,1811.0,5.4378]
[1743717451981,0.00828775,1811.2,1811.0,5.4378]
[1743717453683,0.00828775,1811.2,1811.0,6.54255]
[1743717454684,0.00828775,1811.2,1811.0,5.4378]
[1743717455182,0.00828775,1811.2,1811.1,40.8]
[1743717455385,0.00828775,1811.2,1811.0,6.54254]
[1743717455386,1.11293775,1811.2,1811.0,6.54254]
[1743717455679,1.11293775,1811.2,1811.0,5.4378]
[1743717455881,1.11293775,1811.2,1811.0,6.54257]
[1743717456074,0.00828775,1811.2,1811.0,5.4378]
[1743717456280,1.10472,1811.1,1811.0,5.4378]
[1743717456579,1.10472,1811.1,1811.0,3.2078]
[1743717456775,1.10478,1811.0,1810.9,0.00828775]
[1743717457181,5.04378,1811.0,1810.9,0.00828775]
[1743717457691,3.939,1811.0,1810.9,0.00828775]
[1743717458687,5.13813766,1811.0,1810.9,0.00828775]
[1743717459090,6.53903766,1811.0,1810.9,0.00828775]
[1743717459282,6.53903782,1811.0,1810.9,0.00828775]
[1743717459884,6.44468,1811.0,1810.9,0.00828775]
[1743717460090,6.53903578,1811.0,1810.9,0.00828775]
[1743717460390,6.44468,1811.0,1810.9,0.00828775]
[1743717460989,5.4212565,1811.0,1810.9,0.00828775]
[1743717461188,5.3269,1811.0,1810.9,1.11312775]
[1743717461388,4.64618775,1811.2,1811.0,1.10474]
[1743717461688,1.3962,1811.1,1811.0,1.10474]
[1743717461882,3.93728775,1811.2,1811.1,4.31252]
[1743717462084,3.93728775,1811.2,1811.1,5.82912]
[1743717462687,5.41998775,1811.2,1811.1,5.82912]
[1743717463187,1.49098775,1811.2,1811.1,5.82912]
[1743717467286,0.00828775,1811.2,1811.1,5.82912]
[1743717468091,0.00828775,1811.2,1811.1,7.24532]
[1743717469695,0.00828775,1811.2,1811.1,9.74532]
[1743717471987,1.10445,1811.6,1811.5,1.10447]
[1743717472184,6.50485,1811.6,1811.5,4.31227]
[1743717472695,2.60585,1811.6,1811.5,4.31227]
[1743717474389,2.60581,1811.6,1811.5,4.31227]
[1743717475093,1.5014,1811.6,1811.5,4.31227]
[1743717475395,2.60581,1811.6,1811.5,4.31227]
[1743717476393,2.76013,1812.2,1811.5,3.2078]
[1743717476595,0.09430749,1812.1,1812.0,1.10417]
[1743717476796,2.58112,1812.3,1812.1,1.10407]
[1743717476997,1.4771,1812.3,1812.0,4.6294]
[1743717477294,4.10260797,1812.5,1812.2,3.2078]
[1743717477486,1.4503,1812.4,1812.3,1.10398]
[1743717477692,2.55422,1812.4,1812.3,3.2078]
[1743717477997,1.4503,1812.4,1812.3,4.31178]
[1743717478398,2.55422,1812.4,1812.3,3.2078]
[1743717479386,6.49022,1812.4,1812.3,3.2078]
[1743717479699,8.24053385,1812.4,1812.1,3.2078]
[1743717479894,1.10405,1812.2,1812.1,3.2078]
[1743717481204,1.10417,1812.0,1811.9,3.21608775]
[1743717481404,5.03917,1812.0,1811.9,3.21608775]
[1743717481796,1.10441,1811.6,1811.3,1.10454]
[1743717482002,2.53378,1811.5,1811.3,2.47488]
[1743717482202,2.53378,1811.5,1811.4,3.2078]
[1743717483401,1.10453,1811.4,1811.3,0.00828775]
[1743717483698,6.50433,1811.4,1811.3,0.00828775]
[1743717485899,6.5986718,1811.4,1811.3,0.00828775]
[1743717486207,6.50433,1811.4,1811.3,0.00828775]
[1743717486409,9.09866786,1811.4,1811.3,0.00828775]
[1743717486707,1.10459,1811.3,1811.2,3.2078]
[1743717486907,1.10484,1810.9,1810.8,40.8]
[1743717487205,3.946,1810.9,1810.8,44.0078]
[1743717488207,5.4243,1810.9,1810.8,44.0078]
[1743717488405,5.4243,1810.9,1810.8,45.1127]
[1743717488605,5.4243,1810.9,1810.8,44.0078]
[1743717488802,3.946,1810.9,1810.8,45.1127]
[1743717489207,0.00828775,1811.0,1810.9,1.10484]
[1743717489510,0.00828775,1811.0,1810.9,3.25094]
[1743717489909,0.00828775,1811.0,1810.9,44.05094]
[1743717490412,1.4783,1811.4,1811.3,1.10459]
[1743717490613,1.4783,1811.4,1811.3,4.31239]
[1743717491106,0.7171,1811.8,1811.6,1.10439]
[1743717491314,5.3336,1811.7,1811.6,4.31221]
[1743717491512,1.3866,1811.7,1811.6,5.75441]
[1743717492108,4.65008775,1811.9,1811.8,1.10429]
[1743717492414,5.33988775,1811.9,1811.8,4.31209]
[1743717493208,0.00828775,1811.9,1811.8,4.31209]
[1743717493413,0.00828775,1811.9,1811.8,5.73279]
[1743717496412,1.4809,1812.2,1812.1,1.10411]
[1743717496617,1.4809,1812.2,1812.1,4.31191]
[1743717502919,3.919,1812.4,1812.3,1.10398]
[1743717503118,5.3944,1812.4,1812.3,4.31178]
[1743717503521,7.97e-06,1812.5,1812.4,1.10392]
[1743717503817,7.97e-06,1812.5,1812.4,3.21442]
[1743717504017,7.97e-06,1812.5,1812.4,46.51442]
[1743717505421,1.10323,1813.6,1813.5,1.10323]
[1743717505613,3.945,1813.9,1813.5,3.2078]
[1743717505809,1.388,1813.8,1813.5,3.2078]
[1743717506014,1.10313,1813.7,1813.6,1.10316]
[1743717506314,1.388,1813.8,1813.5,3.2078]
[1743717506509,1.10319,1813.6,1813.5,3.2078]
[1743717506919,3.60319,1813.6,1813.5,3.2078]
[1743717507121,3.91169,1813.6,1813.5,3.2078]
[1743717507419,2.8085,1813.6,1813.5,3.2078]
[1743717508218,1.388,1813.6,1813.5,4.31105]
[1743717508419,1.388,1813.6,1813.5,4.7007]
[1743717508611,2.49119,1813.6,1813.5,4.7007]
[1743717508817,1.388,1813.6,1813.5,4.7007]
[1743717509019,2.49119,1813.6,1813.5,3.2078]
[1743717509233,1.388,1813.6,1813.5,3.2078]
[1743717509420,2.49119,1813.6,1813.5,3.2078]
[1743717510219,1.388,1813.6,1813.5,3.2078]
[1743717510617,1.388,1813.6,1813.5,4.7007]
[1743717511623,2.75755,1813.9,1813.7,1.10311]